fUST/lending_fUST_20250221
["ID","MTS","AMOUNT","RATE_DAILY","PERIOD"]
[353828922,1740082249375,-998.82,0.00013945,2]
[353828923,1740082249384,-39191.14,0.00013945,2]
[353828924,1740082249395,-1018.22,0.00013945,2]
[353828925,1740082249405,-500.0,0.00013945,2]
[353828926,1740082249416,-500.0,0.00013945,2]
[353828927,1740082249425,-2756.61,0.00013945,2]
[353828928,1740082249435,-2153.5,0.00013945,2]
[353828929,1740082249445,-6118.66,0.00013945,2]
[353828930,1740082249456,-500.0,0.00013945,2]
[353828931,1740082249466,-1104.4,0.00013945,2]
[353828932,1740082249475,-500.0,0.00013945,2]
[353828933,1740082249484,-299.97500029,0.00013945,2]
[353828934,1740082249494,-500.0,0.00013945,2]
[353828935,1740082249506,-500.0,0.00013945,2]
[353828936,1740082249515,-500.0,0.00013945,2]
[353828937,1740082249525,-3624.95,0.00013945,2]
[353828938,1740082249534,-500.0,0.00013945,2]
[353828939,1740082249543,-500.0,0.00013945,2]
[353828940,1740082249553,-500.0,0.00013945,2]
[353828941,1740082249563,-1955.2,0.00013945,2]
[353828942,1740082249574,-500.0,0.00013945,2]
[353828943,1740082249584,-500.0,0.00013945,2]
[353828944,1740082249594,-893.57,0.00013945,2]
[353828945,1740082249603,-2929.05,0.00013945,2]
[353828946,1740082249612,-1429.61,0.00013945,2]
[353828947,1740082249622,-500.0,0.00013945,2]
[353828948,1740082249632,-500.0,0.00013945,2]
[353828949,1740082249643,-625.42,0.00013945,2]
[353828950,1740082249656,-500.0,0.00013945,2]
[353828951,1740082249665,-500.0,0.00013945,2]
[353828952,1740082249675,-500.0,0.00013945,2]
[353828953,1740082249684,-500.0,0.00013945,2]
[353828954,1740082249791,-500.0,0.00013945,2]
[353828955,1740082249802,-500.0,0.00013945,2]
[353828956,1740082249811,-1152.68,0.00013945,2]
[353828957,1740082249821,-500.0,0.00013945,2]
[353828958,1740082249831,-500.0,0.00013945,2]
[353828959,1740082249840,-1867.16,0.00013945,2]
[353828960,1740082249850,-1376.24,0.00013945,2]
[353828961,1740082249859,-500.0,0.00013945,2]
[353828962,1740082249868,-500.0,0.00013945,2]
[353828963,1740082249877,-500.0,0.00013945,2]
[353828964,1740082249887,-503.0558322,0.00013945,2]
[353828965,1740082249896,-500.0,0.00013945,2]
[353828966,1740082249906,-5313.9,0.00013945,2]
[353828967,1740082249917,-619.38371263,0.00013945,2]
[353828968,1740082249927,-500.0,0.00013945,2]
[353828969,1740082249937,-12729.62,0.00013945,2]
[353828970,1740082249947,-668.14,0.00013945,2]
[353828971,1740082249957,-500.0,0.00013945,2]
[353828972,1740082249966,-500.0,0.00013945,2]
[353828973,1740082249977,-1741.58,0.00013945,2]
[353828974,1740082249986,-1908.2,0.00013945,2]
[353828975,1740082249996,-1204.27,0.00013945,2]
[353828976,1740082250005,-500.0,0.00013945,2]
[353828977,1740082250015,-500.0,0.00013945,2]
[353828978,1740082250025,-500.0,0.00013945,2]
[353828979,1740082250035,-599.66,0.00013945,2]
[353828980,1740082250045,-500.0,0.00013945,2]
[353828981,1740082250055,-1545.04,0.00013945,2]
[353828982,1740082250065,-500.0,0.00013945,2]
[353828983,1740082250075,-500.0,0.00013945,2]
[353828984,1740082250084,-500.0,0.00013945,2]
[353828985,1740082250094,-500.0,0.00013945,2]
[353828986,1740082250104,-500.0,0.00013945,2]
[353828987,1740082250113,-500.0,0.00013945,2]
[353828988,1740082250123,-7438.69753278,0.00013959,2]
[353828989,1740082250133,-150.0,0.00013971,2]
[353828990,1740082250143,-399.56140855,0.00014009,2]
[353828991,1740082250153,-399.56140855,0.00014009,2]
[353828992,1740082250162,-399.56140855,0.00014009,2]
[353828993,1740082250172,-399.56140855,0.00014009,2]
[353828994,1740082250182,-399.56140855,0.00014009,2]
[353828995,1740082250191,-399.56140855,0.00014009,2]
[353828996,1740082250201,-399.56140855,0.00014009,2]
[353828997,1740082250210,-399.56140855,0.00014009,2]
[353828998,1740082250220,-399.56140855,0.00014009,2]
[353828999,1740082250230,-399.56140855,0.00014009,2]
[353829000,1740082250239,-399.56140855,0.00014009,2]
[353829001,1740082250249,-399.56140855,0.00014009,2]
[353829002,1740082250257,-399.56140855,0.00014009,2]
[353829003,1740082250266,-399.56140855,0.00014009,2]
[353829004,1740082250276,-399.56140855,0.00014009,2]
[353829005,1740082250284,-399.56140855,0.00014009,2]
[353829006,1740082250293,-399.56140855,0.00014009,2]
[353829007,1740082250302,-399.56140855,0.00014009,2]
[353829008,1740082250312,-399.56140855,0.00014009,2]
[353829009,1740082250320,-399.56,0.00014009,2]
[353829010,1740082250330,-150.0,0.00014025,2]
[353829011,1740082250340,-538.0,0.00014025,2]
[353829012,1740082250349,-1969.0,0.00014025,2]
[353829013,1740082250359,-2287.0,0.00014025,2]
[353829014,1740082250370,-396.0,0.00014025,2]
[353829015,1740082250379,-500.0,0.00014027,2]
[353829016,1740082250389,-600.60684181,0.00014027,2]
[353829017,1740082250399,-559.24,0.00014027,2]
[353829018,1740082250408,-500.0,0.00014027,2]
[353829019,1740082250418,-500.0,0.00014027,2]
[353829020,1740082250427,-500.0,0.00014027,2]
[353829021,1740082250438,-500.0,0.00014027,2]
[353829022,1740082250447,-500.0,0.00014027,2]
[353829023,1740082250456,-500.0,0.00014027,2]
[353829024,1740082250466,-500.0,0.00014027,2]
[353829025,1740082250476,-500.0,0.00014027,2]
[353829026,1740082250485,-500.0,0.00014027,2]
[353829027,1740082250494,-500.0,0.00014027,2]
[353829028,1740082250505,-1191.1,0.00014027,2]
[353829029,1740082250515,-500.0,0.00014027,2]
[353829030,1740082250525,-205.39338985,0.00014027,2]
[353829031,1740082250535,-584.55,0.00014027,2]
[353829032,1740082250545,-606.74,0.00014027,2]
[353829033,1740082250555,-500.0,0.00014027,2]
[353829034,1740082250564,-754.28,0.00014027,2]
[353829035,1740082250574,-500.0,0.00014027,2]
[353829036,1740082250584,-500.0,0.00014027,2]
[353829037,1740082250594,-500.0,0.00014027,2]
[353829038,1740082250603,-500.0,0.00014027,2]
[353829039,1740082250613,-500.0,0.00014027,2]
[353829040,1740082250623,-500.0,0.00014027,2]
[353829041,1740082250632,-500.0,0.00014027,2]
[353829042,1740082250641,-500.0,0.00014027,2]
[353829043,1740082250655,-885.87,0.00014027,2]
[353829044,1740082250665,-500.0,0.00014027,2]
[353829045,1740082250675,-500.0,0.00014027,2]
[353829046,1740082250685,-538.88,0.00014027,2]
[353829047,1740082250695,-500.0,0.00014027,2]
[353829048,1740082250705,-307.51127372,0.00014027,2]
[353829049,1740082250714,-500.0,0.00014027,2]
[353829050,1740082250724,-225.82306828,0.00014027,2]
[353829051,1740082250733,-541.39,0.00014027,2]
[353829052,1740082250743,-598.38,0.00014027,2]
[353829053,1740082250752,-500.0,0.00014027,2]
[353829054,1740082250762,-1070.79,0.00014027,2]
[353829055,1740082250771,-500.0,0.00014027,2]
[353829056,1740082250780,-500.0,0.00014027,2]
[353829057,1740082250790,-500.0,0.00014027,2]
[353829058,1740082250798,-890.0,0.00014027,2]
[353829059,1740082250808,-500.0,0.00014027,2]
[353829060,1740082250818,-500.0,0.00014027,2]
[353829061,1740082250828,-500.0,0.00014027,2]
[353829062,1740082250837,-500.0,0.00014027,2]
[353829063,1740082250847,-679.45,0.00014027,2]
[353829064,1740082250857,-500.0,0.00014027,2]
[353829065,1740082250867,-500.0,0.00014027,2]
[353829066,1740082250876,-500.0,0.00014027,2]
[353829067,1740082250886,-500.0,0.00014027,2]
[353829068,1740082250896,-548.08,0.00014027,2]
[353829069,1740082250906,-500.0,0.00014027,2]
[353829070,1740082250916,-547.61,0.00014027,2]
[353829071,1740082250925,-500.0,0.00014027,2]
[353829072,1740082250935,-500.0,0.00014027,2]
[353829073,1740082250943,-500.0,0.00014027,2]
[353829074,1740082250952,-500.0,0.00014027,2]
[353829075,1740082250962,-500.0,0.00014027,2]
[353829076,1740082250971,-500.0,0.00014027,2]
[353829077,1740082250981,-500.0,0.00014027,2]
[353829078,1740082250991,-500.0,0.00014027,2]
[353829079,1740082251001,-503.20914958,0.00014027,2]
[353829080,1740082251011,-3441.58,0.00014027,2]
[353829081,1740082251021,-2972.44,0.00014027,2]
[353829082,1740082251031,-500.0,0.00014027,2]
[353829083,1740082251041,-500.0,0.00014027,2]
[353829084,1740082251051,-1662.58,0.00014027,2]
[353829085,1740082251061,-646.88,0.00014027,2]
[353829086,1740082251072,-500.0,0.00014027,2]
[353829087,1740082251082,-1302.03,0.00014027,2]
[353829088,1740082251091,-500.0,0.00014027,2]
[353829089,1740082251102,-712.82,0.00014027,2]
[353829090,1740082251111,-825.46,0.00014027,2]
[353829091,1740082251119,-14441.06,0.00014027,2]
[353829092,1740082251129,-500.0,0.00014027,2]
[353829093,1740082251138,-500.0,0.00014027,2]
[353829094,1740082251148,-500.0,0.00014027,2]
[353829095,1740082251157,-2628.75,0.00014027,2]
[353829096,1740082251167,-1055.15,0.00014027,2]
[353829097,1740082251176,-500.0,0.00014027,2]
[353829098,1740082251186,-998.82,0.00014027,2]
[353829099,1740082251195,-39191.14,0.00014027,2]
[353829100,1740082251204,-1018.22,0.00014027,2]
[353829101,1740082251213,-500.0,0.00014027,2]
[353829102,1740082251223,-500.0,0.00014027,2]
[353829103,1740082251233,-2756.61,0.00014027,2]
[353829104,1740082251243,-2153.5,0.00014027,2]
[353829105,1740082251254,-6118.66,0.00014027,2]
[353829106,1740082251264,-418.57688245,0.00014027,2]
[353829107,1740082251274,-1104.4,0.00014027,2]
[353829108,1740082251283,-500.0,0.00014027,2]
[353829109,1740082251293,-500.0,0.00014027,2]
[353829110,1740082251302,-500.0,0.00014027,2]
[353829111,1740082251312,-500.0,0.00014027,2]
[353829112,1740082251321,-3624.95,0.00014027,2]
[353829113,1740082251330,-500.0,0.00014027,2]
[353829114,1740082251339,-500.0,0.00014027,2]
[353829115,1740082251348,-500.0,0.00014027,2]
[353829116,1740082251358,-1955.2,0.00014027,2]
[353829117,1740082251368,-500.0,0.00014027,2]
[353829118,1740082251377,-500.0,0.00014027,2]
[353829119,1740082251386,-893.57,0.00014027,2]
[353829120,1740082251396,-2929.05,0.00014027,2]
[353829121,1740082251406,-1429.61,0.00014027,2]
[353829122,1740082251415,-500.0,0.00014027,2]
[353829123,1740082251425,-500.0,0.00014027,2]
[353829124,1740082251434,-625.42,0.00014027,2]
[353829125,1740082251444,-500.0,0.00014027,2]
[353829126,1740082251454,-500.0,0.00014027,2]
[353829127,1740082251464,-500.0,0.00014027,2]
[353829128,1740082251473,-500.0,0.00014027,2]
[353829129,1740082251483,-500.0,0.00014027,2]
[353829130,1740082251492,-1152.68,0.00014027,2]
[353829131,1740082251502,-500.0,0.00014027,2]
[353829132,1740082251516,-500.0,0.00014027,2]
[353829133,1740082251538,-1867.16,0.00014027,2]
[353829134,1740082251561,-1376.24,0.00014027,2]
[353829135,1740082251583,-500.0,0.00014027,2]
[353829136,1740082251605,-500.0,0.00014027,2]
[353829137,1740082251629,-500.0,0.00014027,2]
[353829138,1740082251651,-500.0,0.00014027,2]
[353829139,1740082251671,-5313.9,0.00014027,2]
[353829140,1740082251693,-500.0,0.00014027,2]
[353829141,1740082251714,-12729.62,0.00014027,2]
[353829142,1740082251736,-668.14,0.00014027,2]
[353829143,1740082251759,-500.0,0.00014027,2]
[353829144,1740082251780,-1741.58,0.00014027,2]
[353829145,1740082251801,-1908.2,0.00014027,2]
[353829146,1740082251811,-1204.27,0.00014027,2]
[353829147,1740082251820,-500.0,0.00014027,2]
[353829148,1740082251830,-500.0,0.00014027,2]
[353829149,1740082251840,-500.0,0.00014027,2]
[353829150,1740082251850,-599.66,0.00014027,2]
[353829151,1740082251859,-500.0,0.00014027,2]
[353829152,1740082251869,-1545.04,0.00014027,2]
[353829153,1740082251878,-500.0,0.00014027,2]
[353829154,1740082251888,-500.0,0.00014027,2]
[353829155,1740082251897,-500.0,0.00014027,2]
[353829156,1740082251907,-500.0,0.00014027,2]
[353829157,1740082251916,-500.0,0.00014027,2]
[353829158,1740082251925,-500.0,0.00014027,2]
[353829159,1740082251934,-268.75026168,0.00014033,2]
[353829160,1740082251944,-3000.0,0.000141,30]
[353829161,1740082251952,-189.0,0.000141,2]
[353829162,1740082251962,-500.0,0.00014109,2]
[353829163,1740082251971,-500.0,0.00014109,2]
[353829164,1740082251980,-500.0,0.00014109,2]
[353829165,1740082251990,-180.994,0.00014109,2]
[353829166,1740082251999,-500.0,0.00014109,2]
[353829167,1740082252008,-500.0,0.00014109,2]
[353829168,1740082252109,-175.74853717,0.00014109,2]
[353829169,1740082252119,-500.0,0.00014109,2]
[353829170,1740082252129,-500.0,0.00014109,2]
[353829171,1740082252138,-500.0,0.00014109,2]
[353829172,1740082252147,-500.0,0.00014109,2]
[353829173,1740082252158,-500.0,0.00014109,2]
[353829174,1740082252167,-1191.1,0.00014109,2]
[353829175,1740082252176,-500.0,0.00014109,2]
[353829176,1740082252186,-584.55,0.00014109,2]
[353829177,1740082252196,-606.74,0.00014109,2]
[353829178,1740082252205,-500.0,0.00014109,2]
[353829179,1740082252215,-754.28,0.00014109,2]
[353829180,1740082252224,-329.42788432,0.00014109,2]
[353829181,1740082252234,-500.0,0.00014109,2]
[353829182,1740082252243,-500.0,0.00014109,2]
[353829183,1740082252253,-500.0,0.00014109,2]
[353829184,1740082252262,-500.0,0.00014109,2]
[353829185,1740082252271,-476.6464232,0.00014109,2]
[353829186,1740082252281,-885.87,0.00014109,2]
[353829187,1740082252290,-500.0,0.00014109,2]
[353829188,1740082252299,-500.0,0.00014109,2]
[353829189,1740082252309,-538.88,0.00014109,2]
[353829190,1740082252318,-500.0,0.00014109,2]
[353829191,1740082252328,-500.0,0.00014109,2]
[353829192,1740082252338,-541.39,0.00014109,2]
[353829193,1740082252347,-598.38,0.00014109,2]
[353829194,1740082252356,-500.0,0.00014109,2]
[353829195,1740082252366,-1070.79,0.00014109,2]
[353829196,1740082252375,-500.0,0.00014109,2]
[353829197,1740082252385,-500.0,0.00014109,2]
[353829198,1740082252395,-155.44690647,0.00014109,2]
[353829199,1740082252404,-890.0,0.00014109,2]
[353829200,1740082252413,-500.0,0.00014109,2]
[353829201,1740082252423,-500.0,0.00014109,2]
[353829202,1740082252432,-500.0,0.00014109,2]
[353829203,1740082252442,-500.0,0.00014109,2]
[353829204,1740082252451,-679.45,0.00014109,2]
[353829205,1740082252461,-166.08861043,0.00014109,2]
[353829206,1740082252470,-500.0,0.00014109,2]
[353829207,1740082252480,-500.0,0.00014109,2]
[353829208,1740082252490,-548.08,0.00014109,2]
[353829209,1740082252500,-500.0,0.00014109,2]
[353829210,1740082252509,-547.61,0.00014109,2]
[353829211,1740082252518,-500.0,0.00014109,2]
[353829212,1740082252527,-500.0,0.00014109,2]
[353829213,1740082252537,-500.0,0.00014109,2]
[353829214,1740082252546,-500.0,0.00014109,2]
[353829215,1740082252555,-500.0,0.00014109,2]
[353829216,1740082252565,-500.0,0.00014109,2]
[353829217,1740082252574,-500.0,0.00014109,2]
[353829218,1740082252584,-500.0,0.00014109,2]
[353829219,1740082252594,-3441.58,0.00014109,2]
[353829220,1740082252603,-2972.44,0.00014109,2]
[353829221,1740082252613,-500.0,0.00014109,2]
[353829222,1740082252622,-500.0,0.00014109,2]
[353829223,1740082252631,-1662.58,0.00014109,2]
[353829224,1740082252640,-646.88,0.00014109,2]
[353829225,1740082252653,-527.72618606,0.00014109,2]
[353829226,1740082252662,-1302.03,0.00014109,2]
[353829227,1740082252670,-500.0,0.00014109,2]
[353829228,1740082252680,-712.82,0.00014109,2]
[353829229,1740082252690,-825.46,0.00014109,2]
[353829230,1740082252699,-14441.06,0.00014109,2]
[353829231,1740082252707,-500.0,0.00014109,2]
[353829232,1740082252716,-500.0,0.00014109,2]
[353829233,1740082252727,-500.0,0.00014109,2]
[353829234,1740082252736,-2628.75,0.00014109,2]
[353829235,1740082252744,-1055.15,0.00014109,2]
[353829236,1740082252756,-445.62761201,0.00014109,2]
[353829237,1740082252765,-998.82,0.00014109,2]
[353829238,1740082252775,-39191.14,0.00014109,2]
[353829239,1740082252784,-1018.22,0.00014109,2]
[353829240,1740082252793,-500.0,0.00014109,2]
[353829241,1740082252802,-500.0,0.00014109,2]
[353829242,1740082252811,-2756.61,0.00014109,2]
[353829243,1740082252821,-2153.5,0.00014109,2]
[353829244,1740082252831,-6118.66,0.00014109,2]
[353829245,1740082252840,-1104.4,0.00014109,2]
[353829246,1740082252851,-500.0,0.00014109,2]
[353829247,1740082252860,-500.0,0.00014109,2]
[353829248,1740082252869,-500.0,0.00014109,2]
[353829249,1740082252879,-500.0,0.00014109,2]
[353829250,1740082252888,-3624.95,0.00014109,2]
[353829251,1740082252897,-500.0,0.00014109,2]
[353829252,1740082252907,-500.0,0.00014109,2]
[353829253,1740082252916,-500.0,0.00014109,2]
[353829254,1740082252926,-1955.2,0.00014109,2]
[353829255,1740082252935,-500.0,0.00014109,2]
[353829256,1740082252945,-500.0,0.00014109,2]
[353829257,1740082252955,-893.57,0.00014109,2]
[353829258,1740082252964,-2929.05,0.00014109,2]
[353829259,1740082252973,-1429.61,0.00014109,2]
[353829260,1740082252983,-500.0,0.00014109,2]
[353829261,1740082252993,-500.0,0.00014109,2]
[353829262,1740082253004,-625.42,0.00014109,2]
[353829263,1740082253013,-501.01678089,0.00014109,2]
[353829264,1740082253023,-500.0,0.00014109,2]
[353829265,1740082253032,-500.0,0.00014109,2]
[353829266,1740082253042,-500.0,0.00014109,2]
[353829267,1740082253051,-500.0,0.00014109,2]
[353829268,1740082253060,-1152.68,0.00014109,2]
[353829269,1740082253069,-500.0,0.00014109,2]
[353829270,1740082253079,-500.0,0.00014109,2]
[353829271,1740082253088,-1867.16,0.00014109,2]
[353829272,1740082253098,-1376.24,0.00014109,2]
[353829273,1740082253107,-500.0,0.00014109,2]
[353829274,1740082253117,-500.0,0.00014109,2]
[353829275,1740082253126,-500.0,0.00014109,2]
[353829276,1740082253135,-500.0,0.00014109,2]
[353829277,1740082253144,-5313.9,0.00014109,2]
[353829278,1740082253154,-500.0,0.00014109,2]
[353829279,1740082253164,-12729.62,0.00014109,2]
[353829280,1740082253173,-668.14,0.00014109,2]
[353829281,1740082253182,-500.0,0.00014109,2]
[353829282,1740082253191,-1741.58,0.00014109,2]
[353829283,1740082253200,-1908.2,0.00014109,2]
[353829284,1740082253210,-1204.27,0.00014109,2]
[353829285,1740082253219,-500.0,0.00014109,2]
[353829286,1740082253228,-500.0,0.00014109,2]
[353829287,1740082253237,-500.0,0.00014109,2]
[353829288,1740082253247,-599.66,0.00014109,2]
[353829289,1740082253257,-500.0,0.00014109,2]
[353829290,1740082253267,-1545.04,0.00014109,2]
[353829291,1740082253276,-500.0,0.00014109,2]
[353829292,1740082253285,-500.0,0.00014109,2]
[353829293,1740082253294,-500.0,0.00014109,2]
[353829294,1740082253303,-500.0,0.00014109,2]
[353829295,1740082253313,-500.0,0.00014109,2]
[353829296,1740082253323,-500.0,0.00014109,2]
[353829297,1740082253332,-3000.0,0.0001411,30]
[353829298,1740082253342,-3000.0,0.0001412,30]
[353829299,1740082253351,-5879.600714,0.0001413,30]
[353829300,1740082253362,-600.0,0.00014164,2]
[353829301,1740082253372,-500.0,0.00014173,2]
[353829302,1740082253381,-500.0,0.00014173,2]
[353829303,1740082253390,-500.0,0.00014191,2]
[353829304,1740082253399,-500.0,0.00014191,2]
[353829305,1740082253409,-500.0,0.00014191,2]
[353829306,1740082253418,-321.98,0.00014191,2]
[353829307,1740082253427,-215.34,0.00014191,2]
[353829308,1740082253436,-500.0,0.00014191,2]
[353829309,1740082253446,-500.0,0.00014191,2]
[353829310,1740082253455,-500.0,0.00014191,2]
[353829311,1740082253464,-500.0,0.00014191,2]
[353829312,1740082253473,-404.52,0.00014191,2]
[353829313,1740082253483,-1191.1,0.00014191,2]
[353829314,1740082253492,-500.0,0.00014191,2]
[353829315,1740082253502,-584.55,0.00014191,2]
[353829316,1740082253511,-606.74,0.00014191,2]
[353829317,1740082253520,-508.7045769,0.00014191,2]
[353829318,1740082253530,-754.28,0.00014191,2]
[353829319,1740082253539,-500.0,0.00014191,2]
[353829320,1740082253548,-500.0,0.00014191,2]
[353829321,1740082253558,-500.0,0.00014191,2]
[353829322,1740082253567,-500.0,0.00014191,2]
[353829323,1740082253577,-885.87,0.00014191,2]
[353829324,1740082253587,-500.0,0.00014191,2]
[353829325,1740082253596,-500.0,0.00014191,2]
[353829326,1740082253606,-538.88,0.00014191,2]
[353829327,1740082253615,-500.0,0.00014191,2]
[353829328,1740082253625,-500.0,0.00014191,2]
[353829329,1740082253634,-541.39,0.00014191,2]
[353829330,1740082253643,-598.38,0.00014191,2]
[353829331,1740082253657,-500.0,0.00014191,2]
[353829332,1740082253667,-1070.79,0.00014191,2]
[353829333,1740082253676,-500.0,0.00014191,2]
[353829334,1740082253686,-500.0,0.00014191,2]
[353829335,1740082253696,-890.0,0.00014191,2]
[353829336,1740082253706,-500.0,0.00014191,2]
[353829337,1740082253715,-500.0,0.00014191,2]
[353829338,1740082253724,-500.0,0.00014191,2]
[353829339,1740082253735,-500.0,0.00014191,2]
[353829340,1740082253745,-679.45,0.00014191,2]
[353829341,1740082253756,-500.0,0.00014191,2]
[353829342,1740082253766,-452.48461225,0.00014191,2]
[353829343,1740082253775,-548.08,0.00014191,2]
[353829344,1740082253784,-500.0,0.00014191,2]
[353829345,1740082253793,-547.61,0.00014191,2]
[353829346,1740082253803,-500.0,0.00014191,2]
[353829347,1740082253812,-500.0,0.00014191,2]
[353829348,1740082253822,-500.0,0.00014191,2]
[353829349,1740082253831,-394.9130372,0.00014191,2]
[353829350,1740082253840,-500.0,0.00014191,2]
[353829351,1740082253850,-500.0,0.00014191,2]
[353829352,1740082253859,-500.0,0.00014191,2]
[353829353,1740082253869,-500.0,0.00014191,2]
[353829354,1740082253879,-3441.58,0.00014191,2]
[353829355,1740082253888,-2972.44,0.00014191,2]
[353829356,1740082253898,-500.0,0.00014191,2]
[353829357,1740082253908,-500.0,0.00014191,2]
[353829358,1740082253918,-1662.58,0.00014191,2]
[353829359,1740082253928,-646.88,0.00014191,2]
[353829360,1740082253938,-1302.03,0.00014191,2]
[353829361,1740082253947,-500.0,0.00014191,2]
[353829362,1740082253958,-712.82,0.00014191,2]
[353829363,1740082253968,-825.46,0.00014191,2]
[353829364,1740082254068,-14441.06,0.00014191,2]
[353829365,1740082254079,-500.0,0.00014191,2]
[353829366,1740082254089,-500.0,0.00014191,2]
[353829367,1740082254099,-500.0,0.00014191,2]
[353829368,1740082254108,-2628.75,0.00014191,2]
[353829369,1740082254118,-1055.15,0.00014191,2]
[353829370,1740082254126,-998.82,0.00014191,2]
[353829371,1740082254136,-39191.14,0.00014191,2]
[353829372,1740082254145,-1018.22,0.00014191,2]
[353829373,1740082254155,-500.0,0.00014191,2]
[353829374,1740082254165,-483.0699101,0.00014191,2]
[353829375,1740082254175,-2756.61,0.00014191,2]
[353829376,1740082254185,-2153.5,0.00014191,2]
[353829377,1740082254195,-6118.66,0.00014191,2]
[353829378,1740082254204,-1104.4,0.00014191,2]
[353829379,1740082254214,-500.0,0.00014191,2]
[353829380,1740082254224,-500.0,0.00014191,2]
[353829381,1740082254233,-500.0,0.00014191,2]
[353829382,1740082254244,-500.0,0.00014191,2]
[353829383,1740082254256,-3624.95,0.00014191,2]
[353829384,1740082254266,-500.0,0.00014191,2]
[353829385,1740082254275,-500.0,0.00014191,2]
[353829386,1740082254285,-500.0,0.00014191,2]
[353829387,1740082254295,-1955.2,0.00014191,2]
[353829388,1740082254304,-500.0,0.00014191,2]
[353829389,1740082254313,-500.0,0.00014191,2]
[353829390,1740082254323,-893.57,0.00014191,2]
[353829391,1740082254333,-2929.05,0.00014191,2]
[353829392,1740082254342,-1429.61,0.00014191,2]
[353829393,1740082254352,-323.26680053,0.00014191,2]
[353829394,1740082254364,-500.0,0.00014191,2]
[353829395,1740082254375,-625.42,0.00014191,2]
[353829396,1740082254385,-500.0,0.00014191,2]
[353829397,1740082254396,-500.0,0.00014191,2]
[353829398,1740082254406,-500.0,0.00014191,2]
[353829399,1740082254416,-500.0,0.00014191,2]
[353829400,1740082254426,-1152.68,0.00014191,2]
[353829401,1740082254435,-500.0,0.00014191,2]
[353829402,1740082254445,-500.0,0.00014191,2]
[353829403,1740082254454,-1867.16,0.00014191,2]
[353829404,1740082254463,-1376.24,0.00014191,2]
[353829405,1740082254474,-500.0,0.00014191,2]
[353829406,1740082254483,-500.0,0.00014191,2]
[353829407,1740082254493,-500.0,0.00014191,2]
[353829408,1740082254504,-500.0,0.00014191,2]
[353829409,1740082254515,-5313.9,0.00014191,2]
[353829410,1740082254524,-638.61968683,0.00014191,2]
[353829411,1740082254534,-12729.62,0.00014191,2]
[353829412,1740082254543,-668.14,0.00014191,2]
[353829413,1740082254551,-500.0,0.00014191,2]
[353829414,1740082254559,-1741.58,0.00014191,2]
[353829415,1740082254568,-1908.2,0.00014191,2]
[353829416,1740082254576,-1204.27,0.00014191,2]
[353829417,1740082254584,-472.62235027,0.00014191,2]
[353829418,1740082254593,-500.0,0.00014191,2]
[353829419,1740082254603,-500.0,0.00014191,2]
[353829420,1740082254613,-599.66,0.00014191,2]
[353829421,1740082254623,-500.0,0.00014191,2]